bitfinex/quotes_ETHUSD_20220218
["timestamp","ask_amount","ask_price","bid_price","bid_amount"]
[1645189105007,2.24990308,2905.4,2904.8,0.86116]
[1645189105206,2.24990308,2905.4,2904.8,1.16116]
[1645189105651,2.24779574,2905.4,2904.8,2.02224]
[1645189105853,2.42983907,2905.4,2904.8,1.16116]
[1645189106047,2.42983907,2905.4,2904.7,0.02693994]
[1645189106248,2.24990319,2905.4,2904.7,0.02693994]
[1645189106449,1.02744542,2904.9,2904.7,0.02693994]
[1645189107046,1.02744542,2904.9,2904.7,0.88816994]
[1645189107248,1.02744542,2904.9,2904.8,0.3]
[1645189107649,1.02744542,2904.9,2904.7,0.88919697]
[1645189108350,1.92389574,2905.3,2904.7,0.88919697]
[1645189108748,2.4360644,2905.3,2904.7,0.88919697]
[1645189109802,0.99122818,2904.9,2904.7,0.88919697]
[1645189110305,1.75179574,2905.3,2904.7,1.75031787]
[1645189110807,1.75179574,2905.3,2904.8,0.3]
[1645189111003,1.75179574,2905.3,2905.0,0.86111]
[1645189111205,1.75179574,2905.3,2905.0,0.8600017]
[1645189112605,1.0189652,2905.2,2905.0,0.8600017]
[1645189113946,2.77076094,2905.2,2905.0,0.8600017]
[1645189114350,2.77076094,2905.2,2904.8,1.72221]
[1645189114651,2.77076094,2905.2,2904.8,2.02221]
[1645189114850,1.0189652,2905.2,2904.8,2.02221]
[1645189115051,1.0189652,2905.2,2904.8,2.88337]
[1645189115452,2.77076094,2905.2,2904.8,2.88337]
[1645189115653,1.0189652,2905.2,2904.8,2.88337]
[1645189117292,1.06093901,2905.2,2904.8,2.88337]
[1645189117900,0.04197381,2905.2,2904.8,2.88337]
[1645189118298,0.04197381,2905.2,2904.8,3.7444705]
[1645189118502,0.04197381,2905.2,2904.8,4.0444705]
[1645189119499,0.04197381,2905.2,2904.8,3.7444705]
[1645189119903,0.04197381,2905.2,2904.9,0.8611]
[1645189120350,0.04197381,2905.2,2905.0,0.3]
[1645189121063,0.04197381,2905.2,2904.8,2.02221]
[1645189121855,1.75663788,2905.3,2904.8,2.02221]
[1645189122056,1.75663788,2905.3,2905.0,0.0266587]
[1645189122357,1.75179574,2905.3,2905.0,0.0266587]
[1645189122659,0.86126,2905.2,2905.0,0.0266587]
[1645189122860,1.44337616,2905.2,2905.0,0.02399284]
[1645189123060,4.02912292,2905.2,2905.0,0.02399284]
[1645189123258,1.75744676,2905.1,2905.0,0.02399284]
[1645189123456,2.25344676,2905.1,2905.0,0.02399284]
[1645189123856,0.496,2905.1,2905.0,0.02399284]
[1645189124104,2.25335939,2905.1,2905.0,0.02399284]
[1645189124908,0.496,2905.1,2905.0,0.02399284]
[1645189127312,0.496,2905.1,2904.9,0.02652152]
[1645189127518,1.72297,2905.0,2904.9,0.02652152]
[1645189127863,2.21897,2905.0,2904.9,0.02652152]
[1645189128265,3.97643791,2905.0,2904.9,0.02652152]
[1645189128670,2.21897,2905.0,2904.9,0.02652152]
[1645189132102,2.39098159,2905.0,2904.8,0.052048]
[1645189132304,2.25307159,2905.0,2904.8,0.052048]
[1645189132500,0.496,2905.0,2904.8,0.052048]
[1645189133101,1.0440825,2904.9,2904.8,0.913328]
[1645189133304,0.496,2905.2,2904.8,0.913328]
[1645189133501,0.00484214,2905.3,2904.8,1.213328]
[1645189134009,1.76191373,2905.3,2904.9,1.72221]
[1645189134204,1.76191373,2905.3,2905.0,0.3]
[1645189134404,1.14592898,2905.1,2905.0,0.3]
[1645189134804,1.14592898,2905.1,2904.8,0.913328]
[1645189135103,1.14592898,2905.1,2904.8,1.213328]
[1645189135951,0.00484214,2905.3,2904.8,1.213328]
[1645189136349,0.00484214,2905.3,2904.9,0.86109]
[1645189136554,2.26296542,2905.4,2905.0,0.3]
[1645189136750,0.00484214,2905.3,2905.0,0.3]
[1645189136950,2.79793584,2905.3,2905.0,2.02219]
[1645189137149,1.03602211,2905.3,2905.0,1.72219]
[1645189137348,1.03602211,2905.3,2905.1,0.3]
[1645189137749,1.03602211,2905.3,2905.1,1.16116]
[1645189138549,1.03602211,2905.3,2905.1,0.3]
[1645189139616,1.03602211,2905.3,2905.0,0.3]
[1645189139811,1.04086425,2905.3,2905.0,0.3]
[1645189140012,1.03602211,2905.3,2905.0,0.3]
[1645189140212,1.03602211,2905.3,2904.9,0.32655354]
[1645189140511,1.04086425,2905.3,2904.9,0.32655354]
[1645189141717,1.04086425,2905.3,2904.9,0.02655354]
[1645189142214,1.75707159,2905.2,2904.7,1.16115]
[1645189142413,1.07837249,2905.3,2904.7,1.16115]
[1645189142855,1.07837249,2905.3,2904.8,0.3]
[1645189143353,0.04235038,2905.3,2904.8,3.8]
[1645189143760,0.04235038,2905.3,2904.8,0.3]
[1645189144162,0.04235038,2905.3,2904.9,0.8611]
[1645189144364,0.04235038,2905.3,2905.0,0.3]
[1645189145163,0.04235038,2905.3,2904.6,1.72224]
[1645189145361,1.79942197,2905.3,2904.7,0.3]
[1645189145562,1.79942197,2905.3,2904.7,0.6]
[1645189145563,0.04235038,2905.3,2904.7,0.6]
[1645189145763,0.04235038,2905.3,2904.8,0.3]
[1645189146263,0.04235038,2905.3,2904.6,5.822311]
[1645189146465,0.04235038,2905.3,2904.6,6.822311]
[1645189147103,0.04235038,2905.3,2904.6,3.322311]
[1645189147305,0.04235038,2905.3,2904.6,2.322311]
[1645189147604,0.04235038,2905.3,2904.7,1.0]
[1645189147804,0.00108022,2904.7,2904.6,2.322311]
[1645189148005,0.00108022,2904.7,2904.6,3.78916796]
[1645189148205,0.00108022,2904.7,2904.6,7.28916796]
[1645189148404,0.00108022,2904.7,2904.6,5.822311]
[1645189148803,0.00108022,2904.7,2904.6,2.322311]
[1645189149413,0.00108022,2904.7,2904.6,1.46116]
[1645189149611,0.00108022,2904.7,2904.6,0.6]
[1645189151453,0.00108022,2904.7,2904.6,0.3]
[1645189151749,0.00108022,2904.7,2904.4,1.6]
[1645189151956,0.00108022,2904.7,2904.3,1.8289]
[1645189152148,0.00108022,2904.7,2904.6,0.02649463]
[1645189152350,1.14576474,2904.9,2904.6,0.02649463]
[1645189157207,1.14576474,2904.9,2904.3,2.1877126]
[1645189157507,1.14576474,2904.9,2904.6,1.0]
[1645189158450,0.496,2904.8,2904.6,1.0]
[1645189160755,0.496,2904.8,2904.6,1.3]
[1645189161354,0.496,2904.8,2904.6,2.16118]
[1645189161896,0.496,2904.8,2904.6,1.86118]
[1645189165850,0.496,2904.8,2904.6,2.7223298]
[1645189166251,0.496,2904.8,2904.6,3.0223298]
[1645189166451,0.496,2904.8,2904.6,2.7223298]
[1645189167253,0.51410487,2904.8,2904.7,0.02647861]
[1645189168453,0.01810487,2904.8,2904.7,0.02647861]
[1645189172110,0.01810487,2904.8,2904.6,1.0]
[1645189172306,0.00940681,2904.8,2904.6,1.0]
[1645189172952,0.00940681,2904.8,2904.6,1.8611165]
[1645189173352,0.00940681,2904.8,2904.6,1.0]
[1645189174358,0.00940681,2904.8,2904.6,0.99862869]
[1645189177811,0.00940681,2904.8,2904.6,1.29862869]
[1645189178608,0.00940681,2904.8,2904.6,0.99862869]
[1645189179812,0.00940681,2904.8,2904.6,1.99862869]
[1645189180013,0.00940681,2904.8,2904.7,1.4668704]
[1645189182153,0.00711008,2905.4,2904.8,0.8610691]
[1645189182356,0.00484214,2905.4,2904.9,1.46678175]
[1645189182555,0.00484214,2905.4,2904.8,0.3]
[1645189182755,0.52823578,2905.4,2904.8,0.6]
[1645189182959,0.52823578,2905.4,2904.8,0.3]
[1645189183155,0.52823578,2905.4,2904.7,0.02647307]
[1645189183356,0.52823578,2905.4,2904.8,1.76681215]
[1645189183556,0.5259684,2905.4,2904.8,0.3]
[1645189183754,0.5259684,2905.4,2904.7,0.02647307]
[1645189183960,0.52823589,2905.4,2904.8,1.46680888]
[1645189184214,0.52823589,2905.4,2904.8,1.76680888]
[1645189184409,0.52823589,2905.4,2904.7,0.02647307]
[1645189184610,0.52823589,2905.4,2904.8,1.46682016]
[1645189184809,0.5259684,2905.4,2904.8,1.46682016]
[1645189185011,0.52823589,2905.4,2904.8,1.46682016]
[1645189185417,0.52823589,2905.4,2904.7,0.02647307]
[1645189186013,0.86123,2905.3,2904.7,0.02647307]
[1645189186212,0.00484214,2905.2,2904.7,0.02647307]
[1645189187310,0.00484214,2905.2,2904.6,2.20035371]
[1645189187714,0.00484214,2905.2,2904.6,2.50035371]
[1645189187962,1.0971904,2905.0,2904.6,2.50035371]
[1645189188167,1.0971904,2905.0,2904.6,2.20035371]
[1645189188563,1.0971904,2905.0,2904.6,1.02505371]
[1645189191906,1.0971904,2905.0,2904.8,0.02645705]
[1645189194214,1.9585504,2905.0,2904.8,0.02645705]
[1645189194413,0.496,2904.9,2904.8,0.02645705]
[1645189195650,0.496,2904.9,2904.8,0.02533632]
[1645189197259,0.00484214,2905.2,2904.6,1.62506973]
[1645189197458,0.00484214,2905.2,2904.7,1.46685315]
[1645189197654,0.00484214,2905.3,2904.7,2.32796835]
[1645189197854,0.00484214,2905.3,2904.8,3.18871315]
[1645189198060,0.00484214,2905.3,2904.9,1.46685315]
[1645189198256,0.00484214,2905.6,2905.0,2.41385779]
[1645189198464,0.00238092,2905.4,2905.1,1.46685315]
[1645189198656,0.00238092,2905.4,2905.2,0.1721]
[1645189198855,0.00238092,2905.4,2905.1,1.8608616]
[1645189199109,0.00238092,2905.4,2905.2,1.46658666]
[1645189199318,3.50484214,2906.1,2905.2,2.06658666]
[1645189199516,0.00238102,2905.4,2905.3,1.46658666]
[1645189199715,0.00238102,2905.4,2905.2,1.6]
[1645189200115,0.00238102,2905.4,2905.2,0.3]
[1645189200316,0.00238102,2905.4,2905.1,0.86099]
[1645189200516,0.00484214,2905.9,2905.1,0.86099]
[1645189200715,0.00221295,2905.4,2905.0,4.965]
[1645189200913,0.00221295,2905.4,2905.0,5.8260004]
[1645189201122,0.00221295,2905.4,2905.1,1.46665799]
[1645189201315,0.00221295,2905.4,2905.1,5.04945869]
[1645189201517,0.00221295,2905.4,2905.2,2.50836107]
[1645189201813,0.00484214,2905.9,2905.2,1.64177557]
[1645189202015,0.00221293,2905.4,2905.2,1.64177557]
[1645189202414,0.02528232,2905.3,2905.2,1.64177557]
[1645189202614,0.02528232,2905.3,2905.2,3.10835639]
[1645189202864,0.02528232,2905.3,2905.2,4.10835639]
[1645189203464,0.02528232,2905.3,2905.2,2.64177557]
[1645189203668,0.02528232,2905.3,2905.2,1.6]
[1645189203867,0.02528232,2905.3,2904.8,0.1719]
[1645189204067,0.67294214,2905.6,2904.6,6.07912869]
[1645189204271,0.00207873,2905.4,2904.7,2.69298311]
[1645189204471,0.00207873,2905.4,2904.8,1.46678311]
[1645189204674,0.00207873,2905.4,2904.8,1.63888311]
[1645189204872,0.00207873,2905.4,2904.9,1.46678311]
[1645189205070,0.00207873,2905.4,2904.9,1.76678311]
[1645189205270,0.00484214,2906.1,2905.0,1.46678311]
[1645189205472,0.00484214,2906.1,2905.7,0.94829194]
[1645189205677,0.02528232,2905.9,2905.7,0.94829194]
[1645189205873,0.00484214,2906.2,2905.7,2.40903194]
[1645189206281,0.00484214,2906.2,2905.7,4.26968194]
[1645189206472,0.0087426,2906.4,2905.7,5.49968194]
[1645189206711,0.00089415,2906.1,2905.9,2.021236]
[1645189207313,0.00089415,2906.1,2906.0,0.3]
[1645189207616,0.0087426,2906.4,2906.0,0.3]
[1645189207912,0.0087426,2906.4,2906.1,0.8605733]
[1645189208112,0.0087426,2906.4,2906.2,0.3]
[1645189208313,0.0087426,2906.4,2906.3,1.06314481]
[1645189208713,0.03402492,2906.4,2906.3,1.36314481]
[1645189209220,0.03402492,2906.4,2906.3,4.81465629]
[1645189209419,0.03402492,2906.4,2906.3,5.81465629]
[1645189212761,0.03402492,2906.4,2906.3,5.51465629]
[1645189212961,0.03402492,2906.4,2906.3,4.51465629]
[1645189214517,0.03402492,2906.4,2906.3,3.45151148]
[1645189215518,0.03402492,2906.4,2906.3,7.80494786]
[1645189215917,0.03402492,2906.4,2906.3,5.60340788]
[1645189216120,0.03402492,2906.4,2906.3,5.90340788]
[1645189217619,0.03402492,2906.4,2906.3,4.30494786]
[1645189217860,0.03402492,2906.4,2906.3,3.45151148]
[1645189218764,0.97029478,2906.4,2906.3,3.45151148]
[1645189218964,1.46629478,2906.4,2906.3,3.45151148]
[1645189219571,1.46629478,2906.4,2906.3,3.10636034]
[1645189219772,1.46629478,2906.4,2906.3,1.72575574]
[1645189219971,1.46629478,2906.4,2906.3,3.10636034]
[1645189220572,2.32723478,2906.4,2906.3,3.10636034]
[1645189220973,2.32723478,2906.4,2905.3,1.5701]
[1645189220974,1.38053966,2906.3,2905.3,1.5701]
[1645189221175,2.38998,2906.2,2905.3,1.5701]
[1645189221374,2.38998,2906.2,2904.9,0.25]
[1645189221375,0.02528232,2906.0,2904.9,0.25]
[1645189221616,0.6679,2905.9,2904.8,1.178]
[1645189221817,0.50084214,2905.8,2904.8,1.178]
[1645189222014,1.00351833,2905.5,2904.8,2.30628866]
[1645189222212,0.496,2905.4,2904.8,1.12828866]
[1645189223014,0.02528232,2905.2,2904.8,2.85030866]
[1645189223214,0.496,2905.2,2904.8,3.15030866]
[1645189223613,0.496,2905.2,2904.8,1.42828866]
[1645189223912,0.00228305,2905.4,2904.8,1.42828866]
[1645189224322,0.00228305,2905.4,2904.9,0.86102]
[1645189224518,0.50084214,2905.6,2905.0,0.3]
[1645189224818,0.00228305,2905.4,2904.9,0.86102]
[1645189225462,0.00228305,2905.4,2905.3,1.07477787]
[1645189225662,0.496,2905.6,2905.3,1.07477787]
[1645189226066,0.02758368,2905.4,2905.3,1.07477787]
[1645189226265,0.00230136,2905.4,2905.3,1.07477787]
[1645189226969,0.03097128,2905.8,2905.3,1.07477787]
[1645189227165,0.00230138,2905.5,2905.3,1.07477787]
[1645189227364,0.00230138,2905.5,2905.4,0.3]
[1645189227565,0.02528232,2905.4,2905.3,1.07477787]
[1645189227765,0.00230138,2905.5,2904.9,1.181]
[1645189227969,0.00230138,2905.5,2904.9,1.481]
[1645189228165,0.03097128,2905.8,2904.9,1.481]
[1645189228365,0.00230137,2905.4,2904.9,1.481]
[1645189228965,0.02528232,2905.2,2904.9,1.481]
[1645189229212,0.00230137,2905.4,2905.0,1.1341697]
[1645189229410,0.04017571,2905.8,2905.0,1.1341697]
[1645189229411,0.03097128,2905.8,2905.0,1.1341697]
[1645189229615,0.00229867,2905.4,2905.0,1.1341697]
[1645189230412,0.00229867,2905.4,2905.0,1.9951697]
[1645189230612,0.03097128,2905.8,2905.0,1.9951697]
[1645189230613,0.02528232,2905.2,2905.0,1.9951697]
[1645189230918,0.00229871,2905.4,2905.1,0.3]
[1645189231411,0.00229871,2905.4,2905.1,0.86097]
[1645189231810,0.03097128,2905.8,2905.1,0.86097]
[1645189232014,0.00229873,2905.4,2905.0,0.3]
[1645189232220,0.00229873,2905.4,2904.9,1.481]
[1645189232221,0.02758105,2905.4,2904.9,1.481]
[1645189232413,0.02758105,2905.4,2904.9,2.481]
[1645189232615,0.00229873,2905.4,2905.0,0.86102]
[1645189232864,0.03097128,2905.8,2905.1,0.3]
[1645189233065,0.85424856,2905.7,2905.1,0.3]
[1645189233266,0.86349908,2905.4,2905.0,0.3]
[1645189233467,0.86349908,2905.4,2904.9,1.481]
[1645189233865,0.86349908,2905.4,2904.6,0.99862869]
[1645189234064,0.8612,2905.4,2904.6,1.29862869]
[1645189234270,0.00484214,2905.6,2904.7,0.96815445]
[1645189234470,0.00484214,2905.6,2904.6,0.99862869]
[1645189234673,1.72281,2905.4,2904.6,0.99862869]
[1645189234875,0.6681,2905.3,2904.6,0.99862869]
[1645189235071,0.02528232,2905.0,2904.6,0.99862869]
[1645189235272,1.3574323,2904.9,2904.6,0.99862869]
[1645189236273,1.15133104,2904.8,2904.6,0.99862869]
[1645189236473,0.496,2904.7,2904.6,0.99862869]
[1645189236716,4.02128232,2904.7,2904.6,0.99862869]
[1645189237211,3.97128232,2904.7,2904.6,0.99862869]
[1645189237419,0.47128232,2904.7,2904.6,0.99862869]
[1645189238819,0.64338232,2904.7,2904.6,0.99862869]
[1645189239825,0.47128232,2904.7,2904.6,0.99862869]
[1645189243464,0.56256566,2904.7,2904.6,0.99862869]
[1645189252012,0.56134243,2904.7,2904.6,0.99862869]
[1645189255864,0.56134243,2904.7,2904.6,2.11382463]
[1645189256563,0.56134243,2904.7,2904.6,0.99862869]
[1645189259111,0.5124403,2904.7,2904.6,0.99862869]
[1645189261316,0.0664403,2904.7,2904.6,1.29862869]
[1645189262956,0.09373549,2904.7,2904.6,1.29862869]
[1645189263966,0.09373549,2904.7,2904.6,0.99862869]
[1645189265768,0.58973549,2904.7,2904.6,0.99862869]
[1645189267916,0.61207376,2904.7,2904.6,0.99862869]
[1645189268319,0.60198406,2904.7,2904.6,0.99862869]
[1645189273068,0.61161514,2904.7,2904.6,0.99862869]
[1645189274315,0.26734614,2904.7,2904.6,0.99862869]
[1645189274716,1.12876614,2904.7,2904.6,0.99862869]
[1645189278066,1.18830482,2904.7,2904.6,0.99862869]
[1645189278764,2.17185634,2904.7,2904.6,0.99862869]
[1645189279967,1.31043634,2904.7,2904.6,0.99862869]
[1645189280869,1.83480243,2904.7,2904.6,0.99862869]
[1645189284036,2.69623243,2904.7,2904.6,0.99862869]
[1645189285240,2.99623243,2904.7,2904.6,0.99862869]
[1645189285457,3.16833243,2904.7,2904.6,0.99862869]
[1645189285658,3.11833243,2904.7,2904.6,0.99862869]
[1645189286461,3.14446157,2904.7,2904.6,0.99862869]
[1645189286865,4.14446157,2904.7,2904.6,0.99862869]
[1645189287261,0.86165,2904.4,2903.7,3.2958]
[1645189287464,0.86165,2904.4,2903.5,4.9459]
[1645189287465,0.496,2904.3,2903.5,0.1721]
[1645189287664,6.2,2904.2,2903.5,0.1721]
[1645189287867,0.496,2904.1,2903.5,0.1721]
[1645189288264,0.796,2904.1,2903.5,0.1721]
[1645189288462,0.86172,2903.9,2903.5,0.1721]
[1645189288664,0.496,2903.8,2903.5,0.1721]
[1645189289112,1.01201322,2903.7,2903.5,0.1721]
[1645189289316,0.496,2903.6,2903.5,0.1721]
[1645189289523,1.35781,2903.6,2903.5,0.1721]
[1645189289717,1.30781,2903.6,2903.5,0.1721]
[1645189290622,1.38642805,2903.6,2903.5,0.1721]
[1645189291620,1.4650461,2903.6,2903.5,0.1721]
[1645189292024,1.4650461,2903.6,2903.1,0.0023047]
[1645189292866,1.53246132,2903.6,2903.1,0.0023047]
[1645189293166,1.53246132,2903.6,2903.1,0.00237527]
[1645189293769,1.61107937,2903.6,2903.1,0.00237527]
[1645189294170,1.61107937,2903.6,2903.0,1.46756679]
[1645189294575,1.61107937,2903.6,2903.1,0.00237527]
[1645189294775,1.11182385,2903.2,2903.1,0.00237527]
[1645189294979,2.46973385,2903.2,2903.1,0.00237527]
[1645189295473,2.46973385,2903.2,2902.2,4.7315]
[1645189295673,2.46973385,2903.2,2903.0,0.00135629]
[1645189295872,2.49586299,2903.2,2903.0,0.00135629]
[1645189296375,7.0619999,2903.1,2903.0,0.00135629]
[1645189296617,0.86216,2902.8,2902.2,1.2315]
[1645189296817,0.496,2902.7,2902.2,1.2315]
[1645189297017,3.996,2902.7,2902.2,1.2315]
[1645189297220,1.10069054,2902.3,2902.1,2.4053319]
[1645189297420,0.496,2902.2,2902.1,2.4053319]
[1645189297618,0.496,2902.2,2902.1,0.05642779]
[1645189298618,0.496,2902.2,2901.8,2.65290064]
[1645189298820,0.496,2902.2,2901.9,1.46799941]
[1645189299224,0.52212914,2902.2,2901.9,1.46927823]
[1645189299622,0.52212914,2902.2,2901.9,0.00127882]
[1645189300224,0.54825828,2902.2,2901.9,1.46798706]
[1645189300466,1.80287805,2902.7,2902.2,0.98942729]
[1645189300669,0.496,2902.6,2902.2,0.98942729]
[1645189300869,0.496,2902.6,2902.2,2.15140729]
[1645189301472,0.52212914,2902.6,2902.2,2.15140729]
[1645189301670,0.52212914,2902.6,2902.3,0.00236537]
[1645189302480,0.60074719,2902.6,2902.3,0.00236537]
[1645189302674,0.60074719,2902.6,2902.2,1.85140729]
[1645189302874,0.60074719,2902.6,2902.3,0.0022836]
[1645189303280,0.10474719,2902.6,2902.3,1.77000578]
[1645189303474,0.13087633,2902.6,2902.4,1.46772218]
[1645189304112,0.13087633,2902.6,2902.4,1.00228358]
[1645189304315,0.13087633,2902.6,2902.5,1.46763808]
[1645189304516,0.20949438,2902.6,2902.5,0.3]
[1645189304916,0.20949438,2902.6,2902.4,2.16389358]
[1645189305127,0.20949438,2902.6,2902.4,2.16161]
[1645189305416,0.20949438,2902.6,2902.5,1.46765611]
[1645189305617,0.28811243,2902.6,2902.5,1.46765611]
[1645189305816,0.28811243,2902.6,2902.5,1.46764599]
[1645189306017,0.28811243,2902.6,2902.4,2.46389736]
[1645189306216,0.28811243,2902.6,2902.4,2.4616138]
[1645189306520,0.28811243,2902.6,2902.5,1.46765323]
[1645189306716,0.36673048,2902.6,2902.5,1.46765323]
[1645189307117,0.36673048,2902.6,2902.4,1.60228908]
[1645189307319,0.36673048,2902.6,2902.5,1.46761501]
[1645189307865,0.36673048,2902.6,2902.5,1.0]
[1645189307866,0.43367716,2902.6,2902.5,1.0]
[1645189308162,0.43367716,2902.6,2902.5,1.46766046]
[1645189308365,0.43465442,2902.6,2902.5,1.0]
[1645189308763,0.46078356,2902.6,2902.4,1.6]
[1645189308965,0.46078356,2902.6,2902.4,1.60228908]
[1645189309364,0.46078356,2902.6,2902.4,0.60228908]
[1645189309564,0.46078356,2902.6,2902.4,0.00228908]
[1645189309565,0.46176082,2902.6,2902.4,0.00228908]
[1645189309767,0.48788996,2902.6,2902.4,0.00228908]
[1645189309966,0.48788996,2902.6,2902.4,1.46773778]
[1645189310267,0.48788996,2902.6,2902.4,1.4700265]
[1645189310471,0.48886722,2902.6,2902.4,0.00228872]
[1645189310667,0.51499636,2902.6,2902.4,0.00228872]
[1645189311066,0.51499636,2902.6,2902.3,0.86173]
[1645189311267,0.51499636,2902.6,2902.4,0.00228872]
[1645189311466,0.51597362,2902.6,2902.4,0.00228872]
[1645189311712,0.59459167,2902.6,2902.4,0.00228872]
[1645189312314,0.59459167,2902.6,2902.2,1.85140729]
[1645189312517,0.59556893,2902.6,2902.4,0.00228872]
[1645189312914,0.67418698,2902.6,2902.4,0.00228872]
[1645189313317,1.53618698,2902.6,2902.4,0.00228872]
[1645189313515,1.55731168,2902.6,2902.3,0.3]
[1645189313816,1.58344082,2902.6,2902.4,0.00228875]
[1645189314618,1.58344082,2902.6,2902.2,1.28942729]
[1645189314619,0.74256552,2902.6,2902.2,1.28942729]
[1645189314818,0.74256552,2902.6,2902.4,0.00228875]
[1645189315018,0.82118357,2902.6,2902.4,0.00228875]
[1645189315776,0.84230827,2902.6,2902.4,0.00228875]
[1645189315970,0.92092632,2902.6,2902.3,0.86195]
[1645189316174,0.92092632,2902.6,2902.4,0.00228875]
[1645189316570,0.94107376,2902.6,2902.4,0.00228875]
[1645189316771,0.94205102,2902.6,2902.4,0.00228875]
[1645189316970,0.96818016,2902.6,2902.4,0.00228875]
[1645189317171,0.96818016,2902.6,2902.2,1.28942729]
[1645189317373,0.96818016,2902.6,2902.4,0.00228875]
[1645189317572,0.9883276,2902.6,2902.4,0.00228875]
[1645189317772,0.98930486,2902.6,2902.4,0.00228875]
[1645189317973,0.98930486,2902.6,2902.5,0.01622109]
[1645189318574,1.0094523,2902.6,2902.5,0.01622109]
[1645189318873,1.01042956,2902.6,2902.5,0.01622109]
[1645189319720,1.03155426,2902.6,2902.5,0.01622109]
[1645189320721,1.0517017,2902.6,2902.5,0.01622109]
[1645189320928,1.05267896,2902.6,2902.5,0.01622109]
[1645189321321,1.10516787,2902.6,2902.5,0.01622109]
[1645189321726,1.12531531,2902.6,2902.5,0.01622109]
[1645189321924,1.12629257,2902.6,2902.5,0.01622109]
[1645189322973,1.12629257,2902.6,2902.4,0.00228873]
[1645189322974,1.14644001,2902.6,2902.4,0.00228873]
[1645189323174,1.14644001,2902.6,2902.3,0.01618034]
[1645189323373,1.17256915,2902.6,2902.4,0.00228873]
[1645189323877,1.19369385,2902.6,2902.4,0.00228873]
[1645189324079,1.19271659,2902.6,2902.4,0.00228873]
[1645189324278,1.19271659,2902.6,2902.3,0.01618034]
[1645189324477,0.86203,2902.5,2902.4,0.00228875]
[1645189325480,1.65637512,2902.6,2902.3,0.87815034]
[1645189325683,1.65637512,2902.6,2902.3,0.88043911]
[1645189325878,0.02014744,2902.5,2902.3,0.88043911]
[1645189326085,0.0211247,2902.5,2902.3,0.88043911]
[1645189326720,0.0211247,2902.5,2902.3,0.87815034]
[1645189326918,0.04127214,2902.5,2902.3,0.88043913]
[1645189327121,0.04127214,2902.5,2902.3,0.78043913]
[1645189327122,0.0422494,2902.5,2902.3,0.78043913]
[1645189327519,0.06837854,2902.5,2902.3,0.78043913]
[1645189327918,0.08720186,2902.5,2902.4,0.01618968]
[1645189328119,0.10832656,2902.5,2902.4,0.01618968]
[1645189328520,0.1344557,2902.5,2902.4,0.01618968]
[1645189328725,0.11430826,2902.5,2902.4,0.01618968]
[1645189329121,0.11528552,2902.5,2902.4,0.01618968]
[1645189329528,0.19390357,2902.5,2902.4,0.01618968]
[1645189329825,0.21405101,2902.5,2902.4,0.01618968]
[1645189330024,0.21502827,2902.5,2902.4,0.01618968]
[1645189330667,0.26130485,2902.5,2902.4,0.01618968]
[1645189331066,0.26228211,2902.5,2902.4,0.01618968]
[1645189331469,0.26228211,2902.5,2902.4,1.48395166]
[1645189331772,0.3610476,2902.5,2902.4,1.48395166]
[1645189332169,0.36202486,2902.5,2902.4,1.78395166]
[1645189332768,0.44064291,2902.5,2902.4,1.78395166]
[1645189332969,0.44064291,2902.5,2902.4,1.76776198]
[1645189333169,0.44162017,2902.5,2902.4,1.76776198]
[1645189333778,0.54038566,2902.5,2902.4,1.76776198]
[1645189334330,0.54136292,2902.5,2902.4,1.76776198]
[1645189334734,0.61998097,2902.5,2902.4,1.76776198]
[1645189334929,0.64012841,2902.5,2902.4,1.76776198]
[1645189335430,0.64110567,2902.5,2902.4,1.76776198]
[1645189336131,0.73987116,2902.5,2902.4,1.76776198]
[1645189336337,0.74084842,2902.5,2902.4,1.76776198]
[1645189337135,0.81946647,2902.5,2902.4,1.76776198]
[1645189337332,0.82044373,2902.5,2902.4,1.76776198]
[1645189338176,0.91920922,2902.5,2902.4,0.3]
[1645189338478,0.91920922,2902.5,2902.3,1.16426877]
[1645189338674,0.91920922,2902.5,2902.3,1.16198]
[1645189338878,0.91920922,2902.5,2902.3,1.1631836]
[1645189339278,1.01797471,2902.5,2902.3,1.1631836]
[1645189339478,1.01797471,2902.5,2902.4,1.4678027]
[1645189340283,1.06425129,2902.5,2902.4,1.4678027]
[1645189341178,1.14286934,2902.5,2902.4,1.4678027]
[1645189341389,0.90271678,2902.5,2902.4,4.9678027]
[1645189341639,0.47243161,2902.6,2902.5,0.6627796]
[1645189341834,0.47243161,2902.6,2902.5,5.6305823]
[1645189342430,0.49856075,2902.6,2902.5,6.6305823]
[1645189343433,0.44607184,2902.6,2902.5,6.6305823]
[1645189343834,4.0481361,2903.6,2902.6,0.86163]
[1645189344038,1.7843361,2903.6,2902.7,5.8293827]
[1645189344237,1.7843361,2903.6,2902.8,1.4678027]
[1645189344437,0.6532361,2903.6,2902.8,1.4678027]
[1645189344639,0.6532361,2903.6,2902.9,0.3]
[1645189344852,0.67338354,2903.6,2903.1,1.14191249]
[1645189345240,0.67338354,2903.6,2903.1,1.44191249]
[1645189345471,0.6532361,2903.6,2903.2,1.46748411]
[1645189345672,0.1572361,2903.6,2903.2,1.46748411]
[1645189345971,0.23585415,2903.6,2903.2,1.46748411]
[1645189346173,0.23585415,2903.6,2903.2,2.32914411]
[1645189346369,0.23585415,2903.6,2903.1,3.16522249]
[1645189346370,0.23585415,2903.6,2903.3,0.27985256]
[1645189346769,0.26198329,2903.6,2903.1,1.72331]
[1645189346974,0.18336524,2903.6,2903.1,1.72331]
[1645189347971,0.95043694,2903.5,2903.1,1.72331]
[1645189348370,0.95043694,2903.5,2903.1,2.02331]
[1645189348572,1.81217694,2903.5,2903.1,2.02331]
[1645189352027,1.81217694,2903.5,2903.1,1.99718086]
[1645189352870,0.01636483,2903.4,2903.2,0.87538961]
[1645189353070,0.01636483,2903.4,2903.3,1.46740162]
[1645189353271,0.01636483,2903.4,2903.2,1.17538961]
[1645189353873,0.01636483,2903.4,2903.2,0.31373961]
[1645189354073,0.01636483,2903.4,2903.2,0.01373961]
[1645189354475,0.01636483,2903.4,2903.2,0.87538961]
[1645189354876,0.01636483,2903.4,2903.2,1.17538961]
[1645189357249,0.01636483,2903.4,2903.2,0.31373961]
[1645189357250,0.51236483,2903.4,2903.2,0.31373961]
[1645189357750,0.01738839,2903.3,2903.2,0.01373961]
[1645189362769,0.01738839,2903.3,2902.8,0.01373731]
[1645189363071,0.01738839,2903.3,2902.9,0.00229119]
[1645189363271,0.01738839,2903.3,2903.0,0.86176]
[1645189363470,0.01738839,2903.3,2903.0,1.16176]
[1645189363671,0.01738839,2903.3,2903.0,0.3]
[1645189363869,0.01738839,2903.3,2902.8,0.01373731]